fUST/lending_fUST_20250316
["ID","MTS","AMOUNT","RATE_DAILY","PERIOD"]
[356222663,1742107838563,-520.29595794,8.193e-05,2]
[356222664,1742107838573,-500.0,8.193e-05,2]
[356222665,1742107838583,-500.0,8.193e-05,2]
[356222666,1742107838592,-647.61999711,8.193e-05,2]
[356222667,1742107838602,-500.99869907,8.193e-05,2]
[356222668,1742107838611,-500.0,8.193e-05,2]
[356222669,1742107838620,-500.76262683,8.193e-05,2]
[356222670,1742107838631,-500.0,8.193e-05,2]
[356222671,1742107838640,-500.0,8.193e-05,2]
[356222672,1742107838650,-500.0,8.193e-05,2]
[356222673,1742107838659,-500.0,8.193e-05,2]
[356222674,1742107838669,-151.0,8.212e-05,2]
[356222675,1742107838679,-500.0,8.215e-05,2]
[356222676,1742107838688,-61.61892149,8.215e-05,2]
[356222677,1742107838701,-304.82997062,8.215e-05,2]
[356222678,1742107838711,-195.17002938,8.216e-05,2]
[356222679,1742107838724,-304.82997062,8.216e-05,2]
[356222680,1742107838734,-500.0,8.216e-05,2]
[356222681,1742107838744,-8.79707863,8.216e-05,2]
[356222682,1742107838755,-407.61065123,8.216e-05,2]
[356222683,1742107838766,-83.59227014,8.216e-05,2]
[356222684,1742107838776,-216.55807159,8.216e-05,2]
[356222685,1742107838785,-116.20096527,8.217e-05,2]
[356222713,1742108035771,5495.9456556,7.397e-05,2]
[356223035,1742109807630,790.7973936,7.89e-05,2]
[356223041,1742110051104,-200.0,0.0001548,120]
[356223046,1742110074938,-156.31288283,0.00015703,120]
[356223047,1742110075197,-43.68711717,0.00016675,120]
[356223057,1742110136989,-300.0,8.5e-05,7]
[356223058,1742110138769,-300.0,8.5e-05,7]
[356223059,1742110141808,-300.0,8.5e-05,7]
[356223060,1742110143387,-300.0,8.5e-05,7]
[356223076,1742110232191,-306.31217669,8.017e-05,2]
[356223077,1742110232202,-300.0,8.072e-05,2]
[356223078,1742110232212,-500.0,8.073e-05,2]
[356223079,1742110232222,-503.66588793,8.073e-05,2]
[356223080,1742110232231,-500.0,8.073e-05,2]
[356223081,1742110232240,-500.0,8.073e-05,2]
[356223082,1742110232250,-500.0,8.073e-05,2]
[356223083,1742110232260,-500.0,8.073e-05,2]
[356223084,1742110232270,-501.09705945,8.073e-05,2]
[356223085,1742110232279,-500.0,8.073e-05,2]
[356223086,1742110232289,-488.904494,8.073e-05,2]
[356223087,1742110232298,-500.0,8.073e-05,2]
[356223088,1742110232308,-500.0,8.073e-05,2]
[356223089,1742110232318,-500.0,8.073e-05,2]
[356223090,1742110232327,-500.0,8.073e-05,2]
[356223091,1742110232336,-500.0,8.073e-05,2]
[356223092,1742110232346,-500.0,8.073e-05,2]
[356223093,1742110232356,-500.0,8.073e-05,2]
[356223094,1742110232365,-500.0,8.073e-05,2]
[356223095,1742110232374,-500.0,8.099e-05,2]
[356223096,1742110232384,-201.59065011,8.099e-05,2]
[356223097,1742110232397,-500.0,8.099e-05,2]
[356223098,1742110232406,-17422.63197273,8.1e-05,3]
[356223120,1742110240291,-326.93313629,8.1e-05,3]
[356223591,1742110281105,-156.31288283,0.00016675,120]
[356223592,1742110292565,835.00926513,7.948e-05,2]
[356223593,1742110296495,-200.0,0.00016686,120]
[356223594,1742110338725,138252.07801513,8e-05,2]
[356223595,1742110454860,-500.0,8.073e-05,2]
[356223596,1742110454883,-546.99502029,8.073e-05,2]
[356223597,1742110454907,-300.0,8.099e-05,2]
[356223598,1742110454928,-430651.36672571,8.1e-05,3]
[356223599,1742110468078,-30514.638254,8.1e-05,2]
[356223600,1742110481487,72469.43167737,8e-05,2]
[356223601,1742110756566,10000.0,0.00014,30]
[356223602,1742110763742,10000.0,0.00014,30]
[356223603,1742110771084,10000.0,0.00014,30]
[356223604,1742110806563,189.4,6.002e-05,2]
[356223621,1742111432502,-500.0,8.099e-05,2]
[356223622,1742111432512,-500.0,8.099e-05,2]
[356223623,1742111432522,-500.0,8.099e-05,2]
[356223624,1742111432532,-300.0,8.099e-05,2]
[356223625,1742111432542,-1309.43581315,8.1e-05,2]
[356223637,1742111438619,-3000.0,8.1e-05,2]
[356223675,1742111440547,-68.90057975,8.1e-05,2]
[356223676,1742111440568,-3965.35318714,8.1e-05,2]
[356228395,1742111492830,-300.0,8.099e-05,2]
[356228398,1742111492856,-184.58054429,8.099e-05,2]
[356228402,1742111492878,-362.41945571,8.1e-05,2]
[356230095,1742111561164,846.1332093,8e-05,2]
[356230096,1742112450774,200.0,0.00014203,120]
[356230157,1742112632387,-300.0,8.097e-05,2]
[356230159,1742112632399,-12.27944453,8.098e-05,2]
[356230175,1742112632556,-19605.97652841,8.098e-05,2]
[356230177,1742112632568,-30544.40716725,8.1e-05,2]
[356230180,1742112632582,-27794.62614699,8.1e-05,2]
[356230724,1742112638222,-844.6108845,8.1e-05,2]
[356231239,1742112643828,-73713.53887467,8.1e-05,2]
[356231241,1742112643838,-307.0,8.1e-05,2]
[356231242,1742112643848,-300.0,8.1e-05,2]
[356231243,1742112643857,-1302.36102082,8.1e-05,2]
[356231244,1742112643867,-1302.36102082,8.13e-05,2]
[356231245,1742112643876,-1302.36102082,8.16e-05,2]
[356231246,1742112643885,-1302.36102082,8.189e-05,2]
[356231247,1742112643894,-500.0,8.193e-05,2]
[356231248,1742112643905,-209.43870242,8.193e-05,2]
[356231249,1742112643915,-500.0,8.193e-05,2]
[356231250,1742112643924,-500.0,8.193e-05,2]
[356231251,1742112643934,-500.0,8.193e-05,2]
[356231252,1742112643943,-500.0,8.193e-05,2]
[356231253,1742112643952,-200.20744953,8.193e-05,2]
[356231254,1742112643962,-500.0,8.193e-05,2]
[356231255,1742112643971,-500.0,8.193e-05,2]
[356231256,1742112643982,-500.0,8.193e-05,2]
[356231257,1742112643992,-501.70936986,8.193e-05,2]
[356231258,1742112644004,-500.0,8.193e-05,2]
[356231260,1742112644014,-258.31923611,8.193e-05,2]
[356231262,1742112644023,-500.0,8.193e-05,2]
[356231264,1742112644033,-500.0,8.193e-05,2]
[356231266,1742112644042,-500.0,8.193e-05,2]
[356231268,1742112644051,-500.0,8.193e-05,2]
[356231270,1742112644061,-501.77622225,8.193e-05,2]
[356231272,1742112644071,-500.0,8.193e-05,2]
[356231274,1742112644081,-500.0,8.193e-05,2]
[356231276,1742112644093,-500.0,8.193e-05,2]
[356231278,1742112644102,-500.0,8.193e-05,2]
[356231280,1742112644112,-501.82678745,8.193e-05,2]
[356231282,1742112644123,-500.0,8.193e-05,2]
[356231284,1742112644133,-500.0,8.193e-05,2]
[356231286,1742112644142,-186.9825615,8.2e-05,2]
[356231288,1742112644151,-186.7897638,8.2e-05,2]
[356231289,1742112644164,-187.0114735,8.2e-05,2]
[356231291,1742112644174,-600.0,8.214e-05,2]
[356231293,1742112644184,-151.0,8.219e-05,2]
[356231295,1742112644193,-151.0,8.219e-05,2]
[356231297,1742112644202,-151.0,8.219e-05,2]
[356231299,1742112644212,-503.02428173,8.219e-05,2]
[356231301,1742112644222,-717.97,8.219e-05,2]
[356231303,1742112644231,-614.88489181,8.219e-05,2]
[356231305,1742112644240,-505.73186391,8.219e-05,2]
[356231307,1742112644250,-505.27486014,8.219e-05,2]
[356231309,1742112644260,-515.30759935,8.219e-05,2]
[356231311,1742112644269,-590.79,8.219e-05,2]
[356231313,1742112644279,-516.72636931,8.219e-05,2]
[356231315,1742112644289,-500.0,8.219e-05,2]
[356231317,1742112644298,-500.25594154,8.219e-05,2]
[356231319,1742112644308,-500.0,8.219e-05,2]
[356231322,1742112644317,-500.0,8.219e-05,2]
[356231324,1742112644327,-500.0,8.219e-05,2]
[356231326,1742112644337,-500.0,8.219e-05,2]
[356231328,1742112644346,-500.0,8.219e-05,2]
[356231330,1742112644355,-515.83529741,8.219e-05,2]
[356231332,1742112644365,-500.0,8.219e-05,2]
[356231334,1742112644374,-1710.03,8.219e-05,2]
[356231335,1742112644383,-516.97054514,8.219e-05,2]
[356231338,1742112644393,-500.0,8.219e-05,2]
[356231340,1742112644403,-513.72119031,8.219e-05,2]
[356231342,1742112644412,-500.0,8.219e-05,2]
[356231344,1742112644421,-500.0,8.219e-05,2]
[356231346,1742112644430,-516.88026539,8.219e-05,2]
[356231347,1742112644440,-629.06,8.219e-05,2]
[356231350,1742112644450,-532.87,8.219e-05,2]
[356231352,1742112644459,-175.46268523,8.219e-05,2]
[356231354,1742112644468,-500.0,8.219e-05,2]
[356231356,1742112644478,-500.0,8.219e-05,2]
[356231357,1742112644487,-525.0666841,8.219e-05,2]
[356231360,1742112644496,-500.0,8.219e-05,2]
[356231362,1742112644506,-510.35466547,8.219e-05,2]
[356231364,1742112644515,-517.70706712,8.219e-05,2]
[356231366,1742112644525,-500.0,8.219e-05,2]
[356231368,1742112644534,-515.78406388,8.219e-05,2]
[356231369,1742112644544,-500.0,8.219e-05,2]
[356231371,1742112644554,-617.59,8.219e-05,2]
[356231373,1742112644564,-500.0,8.219e-05,2]
[356231375,1742112644573,-500.0,8.219e-05,2]
[356231378,1742112644583,-500.0,8.219e-05,2]
[356231380,1742112644593,-512.40131285,8.219e-05,2]
[356231382,1742112644604,-500.0,8.219e-05,2]
[356231384,1742112644613,-500.0,8.219e-05,2]
[356231386,1742112644623,-500.0,8.219e-05,2]
[356231387,1742112644632,-500.0,8.219e-05,2]
[356231390,1742112644642,-500.0,8.219e-05,2]
[356231392,1742112644652,-500.0,8.219e-05,2]
[356231394,1742112644662,-22.9418065,8.219e-05,2]
[356231550,1742112646561,-477.0581935,8.219e-05,2]
[356231552,1742112646571,-500.0,8.219e-05,2]
[356231554,1742112646580,-517.68555723,8.219e-05,2]
[356231556,1742112646590,-516.09334075,8.219e-05,2]
[356231558,1742112646600,-505.7024869,8.219e-05,2]
[356231560,1742112646610,-488.37032353,8.219e-05,2]
[356231562,1742112646620,-514.46149834,8.219e-05,2]
[356231564,1742112646630,-526.04891348,8.219e-05,2]
[356231566,1742112646641,-500.0,8.219e-05,2]
[356231568,1742112646651,-500.0,8.219e-05,2]
[356231570,1742112646663,-508.22752881,8.219e-05,2]
[356231572,1742112646673,-500.0,8.219e-05,2]
[356231574,1742112646683,-500.27308297,8.219e-05,2]
[356231576,1742112646692,-500.0,8.219e-05,2]
[356231578,1742112646702,-500.0,8.219e-05,2]
[356231580,1742112646711,-505.20230206,8.219e-05,2]
[356231582,1742112646721,-521.77334885,8.219e-05,2]
[356231584,1742112646730,-534.20545771,8.219e-05,2]
[356231586,1742112646740,-554.19861299,8.219e-05,2]
[356231588,1742112646749,-500.0,8.219e-05,2]
[356231590,1742112646759,-500.0,8.219e-05,2]
[356231592,1742112646769,-507.90468141,8.219e-05,2]
[356231594,1742112646779,-500.0,8.219e-05,2]
[356231596,1742112646788,-500.0,8.219e-05,2]
[356231598,1742112646798,-500.0,8.219e-05,2]
[356231601,1742112646808,-517.47153695,8.219e-05,2]
[356231603,1742112646817,-500.0,8.219e-05,2]
[356231604,1742112646827,-515.12346887,8.219e-05,2]
[356231607,1742112646837,-500.0,8.219e-05,2]
[356231609,1742112646847,-500.0,8.219e-05,2]
[356231611,1742112646858,-500.0,8.219e-05,2]
[356231613,1742112646867,-500.0,8.219e-05,2]
[356231615,1742112646877,-511.76595045,8.219e-05,2]
[356231617,1742112646887,-502.19055483,8.219e-05,2]
[356231619,1742112646897,-237.0219442,8.219e-05,2]
[356231621,1742112646906,-205.16012293,8.219e-05,2]
[356231623,1742112646916,-500.0,8.219e-05,2]
[356231625,1742112646925,-509.61993051,8.219e-05,2]
[356231627,1742112646935,-615.14,8.219e-05,2]
[356231629,1742112646945,-500.0,8.219e-05,2]
[356231631,1742112646954,-500.0,8.219e-05,2]
[356231633,1742112646964,-500.0,8.219e-05,2]
[356231635,1742112646974,-506.94281823,8.219e-05,2]
[356231637,1742112646983,-500.0,8.219e-05,2]
[356231639,1742112646993,-500.0,8.219e-05,2]
[356231641,1742112647003,-509.21501823,8.219e-05,2]
[356231643,1742112647013,-514.68641402,8.219e-05,2]
[356231645,1742112647023,-514.12472424,8.219e-05,2]
[356231647,1742112647032,-500.0,8.219e-05,2]
[356231649,1742112647042,-500.0,8.219e-05,2]
[356231651,1742112647052,-493.94760948,8.219e-05,2]
[356231653,1742112647061,-513.7213882,8.219e-05,2]
[356231655,1742112647071,-500.0,8.219e-05,2]
[356231657,1742112647082,-509.84033908,8.219e-05,2]
[356231659,1742112647093,-509.27399327,8.219e-05,2]
[356231661,1742112647103,-500.0,8.219e-05,2]
[356231663,1742112647112,-500.0,8.219e-05,2]
[356231665,1742112647122,-502.0025549,8.219e-05,2]
[356231667,1742112647133,-500.0,8.219e-05,2]
[356231669,1742112647142,-501.26211608,8.219e-05,2]
[356231671,1742112647152,-1467.36,8.219e-05,2]
[356231673,1742112647161,-504.44850136,8.219e-05,2]
[356231675,1742112647171,-503.341456,8.219e-05,2]
[356231677,1742112647180,-510.50986992,8.219e-05,2]
[356231679,1742112647191,-505.84990275,8.219e-05,2]
[356231681,1742112647202,-500.0,8.219e-05,2]
[356231683,1742112647211,-505.78424158,8.219e-05,2]
[356231685,1742112647222,-505.99366831,8.219e-05,2]
[356231687,1742112647232,-500.0,8.219e-05,2]
[356231689,1742112647242,-510.69525253,8.219e-05,2]
[356231691,1742112647251,-335.52659325,8.219e-05,2]
[356231693,1742112647260,-517.72500722,8.219e-05,2]
[356231695,1742112647270,-511.34289453,8.219e-05,2]
[356231697,1742112647279,-1593.84,8.219e-05,2]
[356231699,1742112647288,-500.0,8.219e-05,2]
[356231701,1742112647298,-2495.66,8.219e-05,2]
[356231703,1742112647309,-501.05633397,8.219e-05,2]
[356231705,1742112647320,-506.73488482,8.219e-05,2]
[356231707,1742112647329,-500.0,8.219e-05,2]
[356231709,1742112647339,-500.0,8.219e-05,2]
[356231711,1742112647350,-507.67967982,8.219e-05,2]
[356231713,1742112647361,-1302.36102082,8.219e-05,2]
[356231714,1742112647371,-516.27688864,8.219e-05,2]
[356231715,1742112647381,-549.85,8.219e-05,2]
[356231716,1742112647391,-500.0,8.219e-05,2]
[356231717,1742112647401,-31274.98488862,8.219e-05,2]
[356232412,1742112870926,200.0,0.00013776,120]
[356232415,1742113776467,-300.0,8.099e-05,2]
[356232416,1742113776491,-906.72,8.099e-05,2]
[356232418,1742113803986,-300.0,8.098e-05,2]
[356232441,1742113837595,-200.0,8.099e-05,2]
[356232452,1742113838345,-812.55,8.099e-05,2]
[356232453,1742113838356,-884.72978764,8.099e-05,2]
[356232756,1742113843522,-17720.9761853,8.099e-05,2]
[356232759,1742113843532,-3483.83309458,8.1e-05,2]
[356232770,1742113843630,-40129.28117881,8.1e-05,2]
[356232772,1742113843640,-500.0,8.193e-05,2]
[356232774,1742113843649,-221.70840598,8.193e-05,2]
[356232776,1742113843659,-337.05197675,8.193e-05,2]
[356233099,1742113846646,-162.94802325,8.193e-05,2]
[356233102,1742113846656,-500.0,8.193e-05,2]
[356233105,1742113846665,-500.0,8.193e-05,2]
[356233108,1742113846675,-195.0,8.21e-05,2]
[356233111,1742113846685,-600.0,8.214e-05,2]
[356233114,1742113846695,-500.0,8.218e-05,2]
[356233117,1742113846704,-470.31983608,8.218e-05,2]
[356233119,1742113846715,-500.0,8.219e-05,2]
[356233121,1742113846724,-511.80529496,8.219e-05,2]
[356233123,1742113846734,-500.0,8.219e-05,2]
[356233125,1742113846744,-514.15184079,8.219e-05,2]
[356233127,1742113846753,-506.9825916,8.219e-05,2]
[356233129,1742113846763,-527.7781212,8.219e-05,2]
[356233131,1742113846773,-500.0,8.219e-05,2]
[356233133,1742113846782,-395.24417276,8.219e-05,2]
[356233135,1742113846792,-500.0,8.219e-05,2]
[356233137,1742113846802,-500.0,8.219e-05,2]
[356233139,1742113846815,-523.36155733,8.219e-05,2]
[356233141,1742113846825,-500.0,8.219e-05,2]
[356233143,1742113846834,-500.0,8.219e-05,2]
[356233145,1742113846844,-500.0,8.219e-05,2]
[356233147,1742113846853,-514.39521733,8.219e-05,2]
[356233149,1742113846863,-550.10600927,8.219e-05,2]
[356233151,1742113846873,-234.12491979,8.219e-05,2]
[356233153,1742113846882,-507.94780832,8.219e-05,2]
[356233155,1742113846891,-500.0,8.219e-05,2]
[356233157,1742113846901,-500.0,8.219e-05,2]
[356233159,1742113846910,-500.0,8.219e-05,2]
[356233161,1742113846920,-507.93693274,8.219e-05,2]
[356233163,1742113846929,-513.20465061,8.219e-05,2]
[356233165,1742113846938,-510.7947366,8.219e-05,2]
[356233167,1742113846948,-500.0,8.219e-05,2]
[356233169,1742113846957,-340.47,8.219e-05,2]
[356233170,1742113846968,-500.0,8.219e-05,2]
[356233171,1742113846978,-504.63785801,8.219e-05,2]
[356233172,1742113846987,-520.0192076,8.219e-05,2]
[356233173,1742113846998,-504.49594217,8.219e-05,2]
[356233174,1742113847007,-500.0,8.219e-05,2]
[356233175,1742113847018,-501.51550646,8.219e-05,2]
[356233176,1742113847028,-231.27164039,8.219e-05,2]
[356233177,1742113847037,-500.0,8.219e-05,2]
[356233178,1742113847047,-513.47124151,8.219e-05,2]
[356233179,1742113847056,-560.38,8.219e-05,2]
[356233180,1742113847066,-297.91519787,8.219e-05,2]
[356233181,1742113847075,-500.0,8.219e-05,2]
[356233182,1742113847085,-533.59048889,8.219e-05,2]
[356233183,1742113847094,-488.77963454,8.219e-05,2]
[356233184,1742113847104,-500.0,8.219e-05,2]
[356233185,1742113847113,-509.34873036,8.219e-05,2]
[356233187,1742113847122,-509.79560443,8.219e-05,2]
[356233189,1742113847131,-493.01499444,8.219e-05,2]
[356233191,1742113847141,-500.0,8.219e-05,2]
[356233193,1742113847151,-508.71829793,8.219e-05,2]
[356233195,1742113847160,-399.69,8.219e-05,2]
[356233197,1742113847169,-500.0,8.219e-05,2]
[356233199,1742113847179,-515.12545747,8.219e-05,2]
[356233201,1742113847189,-502.91949342,8.219e-05,2]
[356233203,1742113847198,-511.00814132,8.219e-05,2]
[356233205,1742113847207,-517.23,8.219e-05,2]
[356233207,1742113847217,-510.3236553,8.219e-05,2]
[356233209,1742113847226,-508.11263336,8.219e-05,2]
[356233211,1742113847235,-507.99493779,8.219e-05,2]
[356233213,1742113847244,-406.36767776,8.219e-05,2]
[356233215,1742113847254,-500.0,8.219e-05,2]
[356233217,1742113847263,-472.16766812,8.219e-05,2]
[356233219,1742113847273,-510.97552926,8.219e-05,2]
[356233221,1742113847282,-548.64,8.219e-05,2]
[356233223,1742113847292,-505.54433936,8.219e-05,2]
[356233225,1742113847302,-506.26119381,8.219e-05,2]
[356233227,1742113847311,-500.0,8.219e-05,2]
[356233229,1742113847321,-151.0,8.219e-05,2]
[356233231,1742113847330,-500.0,8.219e-05,2]
[356233233,1742113847339,-500.0,8.219e-05,2]
[356233235,1742113847348,-501.05962313,8.219e-05,2]
[356233237,1742113847357,-500.0,8.219e-05,2]
[356233239,1742113847367,-500.0,8.219e-05,2]
[356233241,1742113847376,-511.27644539,8.219e-05,2]
[356233243,1742113847384,-508.35251521,8.219e-05,2]
[356233245,1742113847394,-500.0,8.219e-05,2]
[356233247,1742113847403,-500.0,8.219e-05,2]
[356233249,1742113847412,-500.0,8.219e-05,2]
[356233251,1742113847421,-560.20132178,8.219e-05,2]
[356233253,1742113847430,-500.0,8.219e-05,2]
[356233255,1742113847439,-500.0,8.219e-05,2]
[356233257,1742113847449,-501.66230504,8.219e-05,2]
[356233259,1742113847457,-500.0,8.219e-05,2]
[356233261,1742113847467,-504.71057667,8.219e-05,2]
[356233263,1742113847477,-500.0,8.219e-05,2]
[356233265,1742113847485,-534.91859121,8.219e-05,2]
[356233267,1742113847494,-504.1038596,8.219e-05,2]
[356233269,1742113847503,-500.0,8.219e-05,2]
[356233271,1742113847513,-500.0,8.219e-05,2]
[356233273,1742113847522,-500.0,8.219e-05,2]
[356233275,1742113847532,-500.0,8.219e-05,2]
[356233277,1742113847541,-504.03700457,8.219e-05,2]
[356233279,1742113847550,-500.0,8.219e-05,2]
[356233281,1742113847560,-501.39103445,8.219e-05,2]
[356233283,1742113847569,-500.0,8.219e-05,2]
[356233285,1742113847578,-519.0824049,8.219e-05,2]
[356233286,1742113847587,-500.0,8.219e-05,2]
[356233289,1742113847597,-512.59573158,8.219e-05,2]
[356233290,1742113847606,-500.0,8.219e-05,2]
[356233293,1742113847615,-2391.67,8.219e-05,2]
[356233295,1742113847626,-1164.09,8.219e-05,2]
[356233297,1742113847635,-526.94,8.219e-05,2]
[356233298,1742113847645,-222.34364269,8.219e-05,2]
[356235022,1742114131375,200.0,0.00014881,120]
[356235025,1742114463311,-873.03,8.132e-05,2]
[356235028,1742114500843,5000.0,8e-05,2]
[356235030,1742114531280,150.0,8e-05,2]
[356235033,1742114601130,151.48326257,7.9e-05,2]
[356235034,1742114654945,5000.0,8e-05,2]
[356235036,1742114672321,-1315.83,8.129e-05,2]
[356235049,1742115023538,-500.0,8.123e-05,2]
[356235391,1742115042282,10000.0,7.231e-05,2]
[356235461,1742115046773,5000.0,8e-05,2]
[356235847,1742115062376,5000.0,8e-05,2]
[356235848,1742115063152,-300.0,8.122e-05,2]
[356235849,1742115077790,1317.83215452,8e-05,2]
[356235850,1742115086553,-247.14,8.122e-05,2]
[356235851,1742115091346,200.0,0.00014208,120]
[356235852,1742115123486,-300.0,8.121e-05,2]
[356235854,1742115149049,-245.64,8.121e-05,2]
[356235856,1742115184084,-300.0,8.12e-05,2]
[356235857,1742115212426,-200.0,8.12e-05,2]
[356235858,1742115250410,-300.0,8.119e-05,2]
[356235860,1742115341104,-187.25236954,8.119e-05,2]
[356235861,1742115365550,-273.45116038,8.118e-05,2]
[356235863,1742115414667,-273.45116038,8.118e-05,2]
[356235864,1742115428685,-177.298009,8.117e-05,2]
[356235866,1742115465317,-122.701991,8.117e-05,2]
[356235867,1742115465341,-70.87021702,8.117e-05,2]
[356235868,1742115488497,-227.53727826,8.116e-05,2]
[356235869,1742115498673,227.53727826,8e-05,2]
[356235870,1742115527048,-189.9055107,8.019e-05,2]
[356235871,1742115542638,189.9055107,8e-05,2]
[356235872,1742115547152,-3.66669732,8.019e-05,2]
[356235873,1742115547176,-146.33330268,8.115e-05,2]
[356235874,1742115558068,150.0,8e-05,2]
[356235875,1742115591360,-153.66669732,8.115e-05,2]
[356235876,1742115591383,-219.05208396,8.115e-05,2]
[356235877,1742115603736,-150.0,8.114e-05,2]
[356235878,1742115604326,372.71878128,8e-05,2]
[356235880,1742115620160,150.0,8e-05,2]
[356235882,1742115650292,-150.0,8.114e-05,2]
[356235883,1742115663965,-161.8982895,8.114e-05,2]
[356235884,1742115665791,150.0,8e-05,2]
[356235886,1742115682049,161.8982895,8e-05,2]
[356235887,1742115717720,-183.1431957,8.114e-05,2]
[356235888,1742115727071,-170.24743234,8.113e-05,2]
[356235890,1742115782126,-298.77309953,8.113e-05,2]
[356235891,1742115840534,-201.22690047,8.112e-05,2]
[356235892,1742115846546,-176.40567201,8.111e-05,2]
[356235893,1742115901755,-490.65008559,8.111e-05,2]
[356235901,1742115963447,-187.25236954,8.11e-05,2]
[356235907,1742116023934,-150.0,8.109e-05,2]
[356235910,1742116083420,-156.01943339,8.108e-05,2]
[356235911,1742116089613,-143.98056661,8.108e-05,2]
[356235912,1742116089637,-278.01943339,8.109e-05,2]
[356235913,1742116143976,-216.59164141,8.108e-05,2]
[356235914,1742116152055,-214.08328978,8.108e-05,2]
[356235916,1742116174885,7133.2270044,7.213e-05,2]
[356235917,1742116175790,2313.658351,7.27e-05,2]
[356235919,1742116204900,-184.46753705,8.107e-05,2]
[356235961,1742116231887,-12464.82790656,8.107e-05,2]
[356235963,1742116231897,-115.53246295,8.107e-05,2]
[356235964,1742116231906,-187.25236954,8.119e-05,2]
[356235966,1742116231916,-505.07319671,8.193e-05,2]
[356235968,1742116231925,-327.60317839,8.193e-05,2]
[356235970,1742116231934,-500.0,8.193e-05,2]
[356235972,1742116231944,-500.0,8.193e-05,2]
[356235974,1742116231953,-500.0,8.193e-05,2]
[356235976,1742116231963,-500.0,8.193e-05,2]
[356235978,1742116231973,-500.0,8.193e-05,2]
[356235980,1742116231982,-500.0,8.193e-05,2]
[356235982,1742116231992,-619.46012264,8.193e-05,2]
[356235984,1742116232001,-500.0,8.193e-05,2]
[356235986,1742116232014,-500.0,8.193e-05,2]
[356235988,1742116232023,-500.0,8.193e-05,2]
[356235990,1742116232033,-500.0,8.193e-05,2]
[356235992,1742116232042,-500.0,8.193e-05,2]
[356235994,1742116232052,-500.0,8.193e-05,2]
[356235996,1742116232062,-500.0,8.193e-05,2]
[356235998,1742116232073,-500.0,8.193e-05,2]
[356236000,1742116232083,-500.0,8.193e-05,2]
[356236002,1742116232095,-500.0,8.193e-05,2]
[356236004,1742116232104,-500.0,8.193e-05,2]
[356236006,1742116232114,-500.0,8.193e-05,2]
[356236008,1742116232123,-500.0,8.193e-05,2]
[356236010,1742116232132,-600.0,8.214e-05,2]
[356236012,1742116232142,-500.0,8.218e-05,2]
[356236013,1742116232152,-179.22388526,8.218e-05,2]
[356236014,1742116232161,-490.65008559,8.218e-05,2]
[356236015,1742116232170,-187.25236954,8.218e-05,2]
[356236016,1742116232180,-240.65099396,8.218e-05,2]
[356236017,1742116232203,-181.34900604,8.218e-05,2]
[356236018,1742116232212,-216.59164141,8.218e-05,2]
[356236019,1742116232221,-214.08328978,8.218e-05,2]
[356236020,1742116232230,-500.0,8.219e-05,2]
[356236021,1742116232240,-464.96112809,8.219e-05,2]
[356236022,1742116232251,-36.0985952,8.219e-05,2]
[356236023,1742116232260,-501.95411775,8.219e-05,2]
[356236024,1742116232270,-500.10993984,8.219e-05,2]
[356236025,1742116232280,-500.11975557,8.219e-05,2]
[356236026,1742116232289,-500.0,8.219e-05,2]
[356236027,1742116232299,-500.0,8.219e-05,2]
[356236028,1742116232482,-500.0,8.219e-05,2]
[356236029,1742116232492,-494.58099193,8.219e-05,2]
[356236049,1742116237875,-5.752073,8.219e-05,2]
[356236050,1742116237885,-513.60814533,8.219e-05,2]
[356236051,1742116237894,-607.67,8.219e-05,2]
[356236052,1742116237903,-189.46236529,8.219e-05,2]
[356236053,1742116237914,-310.53763471,8.219e-05,2]
[356236054,1742116237923,-511.01570553,8.219e-05,2]
[356236055,1742116237932,-516.80901164,8.219e-05,2]
[356236057,1742116237941,-501.58133378,8.219e-05,2]
[356236058,1742116237951,-509.12719579,8.219e-05,2]
[356236059,1742116237960,-510.06356317,8.219e-05,2]
[356236061,1742116237969,-510.06687072,8.219e-05,2]
[356236063,1742116237978,-506.48462986,8.219e-05,2]
[356236065,1742116237987,-521.94287685,8.219e-05,2]
[356236067,1742116237996,-505.32547185,8.219e-05,2]
[356236069,1742116238006,-530.36631711,8.219e-05,2]
[356236071,1742116238019,-504.5305511,8.219e-05,2]
[356236073,1742116238028,-501.5057539,8.219e-05,2]